bitfinex/quotes_ETHUSD_20260208
["timestamp","ask_amount","ask_price","bid_price","bid_amount"]
[1770583444493,1.01926398,2117.9,2117.6,0.001]
[1770583444693,1.01926398,2117.8,2117.6,0.001]
[1770583444994,2.08121817,2118.0,2117.6,0.001]
[1770583445208,1.01927204,2117.9,2117.6,0.001]
[1770583445413,4.72234187,2118.1,2117.8,0.001]
[1770583445619,0.0011,2117.9,2117.8,0.001]
[1770583445794,1.02051726,2117.9,2117.8,0.001]
[1770583450616,1.02051726,2117.9,2117.6,0.001]
[1770583450817,1.01941726,2117.8,2117.6,0.001]
[1770583451123,0.0011,2117.9,2117.6,0.001]
[1770583451326,1.02000614,2117.8,2117.6,0.001]
[1770583451498,0.0011,2117.9,2117.6,0.001]
[1770583451820,1.02002269,2117.8,2117.6,0.001]
[1770583452028,0.0011,2117.9,2117.6,0.97737177]
[1770583452326,1.02000013,2117.8,2117.6,0.97737177]
[1770583452527,0.0011,2117.9,2117.6,0.97737177]
[1770583452823,1.02001836,2117.8,2117.6,0.97737177]
[1770583453024,0.0011,2117.9,2117.6,0.97737177]
[1770583453227,1.01999489,2117.8,2117.6,0.97737177]
[1770583453429,0.0011,2117.9,2117.6,0.97737177]
[1770583453608,1.02001366,2117.8,2117.6,0.97737177]
[1770583453810,0.0011,2117.9,2117.6,0.97737177]
[1770583454128,1.02001363,2117.8,2117.6,0.97737177]
[1770583454429,0.0011,2117.9,2117.6,0.97737177]
[1770583454601,1.02001426,2117.8,2117.6,0.001]
[1770583454800,0.0011,2117.9,2117.6,0.001]
[1770583455016,1.02001435,2117.8,2117.6,0.001]
[1770583455227,0.0011,2117.9,2117.6,0.001]
[1770583455526,1.01999933,2117.8,2117.6,0.001]
[1770583455717,0.0011,2117.9,2117.6,0.001]
[1770583456028,1.01999791,2117.8,2117.6,0.001]
[1770583456210,0.0011,2117.9,2117.6,0.001]
[1770583456411,1.01999614,2117.8,2117.6,0.001]
[1770583456726,0.0011,2117.9,2117.6,0.001]
[1770583456927,1.01998075,2117.8,2117.6,0.001]
[1770583457228,0.0011,2117.9,2117.6,0.001]
[1770583457530,1.01999227,2117.8,2117.6,0.001]
[1770583457828,0.0011,2117.9,2117.6,0.001]
[1770583458128,1.01998945,2117.8,2117.6,0.001]
[1770583458310,0.0011,2117.9,2117.6,0.001]
[1770583458624,1.01998243,2117.8,2117.7,0.94092549]
[1770583458829,0.0011,2117.9,2117.8,0.94092549]
[1770583459326,1.02102767,2117.9,2117.8,0.94092549]
[1770583459706,0.0011,2117.9,2117.8,0.94092549]
[1770583462731,0.0011,2117.9,2117.8,2.12139578]
[1770583473144,0.0011,2118.1,2117.9,0.94092549]
[1770583473718,0.0011,2118.1,2118.0,2.12128431]
[1770583481349,0.0011,2118.1,2118.0,1.18035882]
[1770583482947,0.0011,2118.1,2117.9,1.18037618]
[1770583483126,0.0011,2118.1,2117.8,4.72177739]
[1770583483325,0.0011,2118.1,2117.7,4.4794825]
[1770583483520,0.0011,2118.1,2117.7,4.4795248]
[1770583483943,0.0011,2117.9,2117.7,4.4795248]
[1770583486129,0.0011,2117.9,2117.7,5.43139007]
[1770583486854,0.0011,2117.9,2117.7,4.4795248]
[1770583488354,0.0011,2117.9,2117.7,5.43139007]
[1770583496178,0.90681137,2117.9,2117.3,0.001]
[1770583496345,0.90571137,2117.4,2117.0,1.1819128]
[1770583496540,0.44813993,2117.0,2116.8,0.001]
[1770583496736,0.44813993,2116.8,2116.6,0.001]
[1770583497066,0.44813993,2116.3,2114.8,0.95186527]
[1770583497267,0.44813993,2115.5,2114.5,5.68110941]
[1770583497456,8.48457155,2115.3,2114.3,1.18242444]
[1770583497766,0.0472668,2115.5,2113.6,4.73106854]
[1770583497767,8.03643162,2114.5,2113.6,2.13464191]
[1770583497942,8.03643162,2114.2,2113.2,10.68397932]
[1770583498147,9.66709477,2114.2,2113.3,1.18298395]
[1770583498337,9.66705564,2114.2,2113.3,1.18298395]
[1770583498541,8.03643162,2114.0,2113.2,1.18303528]
[1770583498972,1.63062402,2114.2,2113.2,1.18303528]
[1770583499239,0.44813993,2114.1,2113.2,1.18303528]
[1770583500171,0.51492386,2114.7,2113.3,0.95186527]
[1770583500340,3.57417566,2115.9,2114.4,0.95186527]
[1770583500341,1.62978193,2115.7,2114.4,0.95186527]
[1770583500669,4.75570973,2115.9,2114.6,0.95186527]
[1770583500871,3.57417566,2115.9,2114.6,0.95186527]
[1770583501067,4.75570734,2115.9,2114.6,2.14504595]
[1770583501271,3.57417566,2115.9,2114.7,0.95186527]
[1770583501445,3.57417566,2115.9,2114.8,0.95186527]
[1770583501846,3.57417566,2115.9,2114.8,0.99913207]
[1770583502474,3.57417566,2115.9,2115.0,0.95186527]
[1770583502772,3.57417566,2115.9,2115.2,0.95186527]
[1770583503670,3.301,2116.7,2115.3,0.95186527]
[1770583505042,3.301,2116.7,2115.5,0.95186527]
[1770583505249,4.48208586,2116.7,2115.5,0.95186527]
[1770583505552,0.34307818,2116.9,2115.6,0.95186527]
[1770583506374,0.34307818,2116.9,2115.8,0.95186527]
[1770583506571,0.34307818,2116.9,2116.0,0.95186527]
[1770583507249,0.34307818,2116.9,2116.2,0.95186527]
[1770583508168,1.18061552,2117.6,2116.2,0.95186527]
[1770583508760,1.18061552,2117.6,2116.2,0.95286527]
[1770583509344,0.0011,2117.7,2116.4,0.95186527]
[1770583512762,0.0011,2117.7,2116.6,0.95186527]
[1770583514075,0.44923993,2117.7,2116.6,0.95186527]
[1770583514274,0.49540673,2116.8,2116.0,0.001]
[1770583514449,3.85053993,2117.1,2116.0,0.001]
[1770583514647,0.0472668,2116.9,2116.0,0.001]
[1770583514852,1.62816789,2116.8,2116.0,0.001]
[1770583515179,1.62816789,2116.8,2115.7,2.131727]
[1770583515367,1.62816789,2116.8,2115.7,2.12885228]
[1770583519178,1.18102796,2116.8,2115.8,0.93546143]
[1770583519382,4.72411186,2117.2,2115.8,0.93546143]
[1770583519383,0.45175248,2117.3,2115.8,0.93546143]
[1770583519678,0.1496668,2117.5,2115.8,0.93546143]
[1770583519882,0.45175248,2117.4,2115.8,0.93546143]
[1770583520786,1.18074906,2117.3,2116.0,0.93546143]
[1770583521774,0.0011,2116.7,2116.0,0.93546143]
[1770583522854,0.0011,2116.7,2116.2,0.93546143]
[1770583524862,0.0011,2116.7,2116.3,2.11676842]
[1770583525089,0.0011,2116.7,2116.4,0.93546143]
[1770583533691,0.0011,2116.7,2116.2,0.93546143]
[1770583534288,0.0011,2116.7,2116.2,2.11678454]
[1770583536397,0.0011,2116.7,2116.4,1.18125118]
[1770583537488,0.0011,2116.7,2116.3,2.11672492]
[1770583542780,0.45175248,2116.2,2115.6,0.001]
[1770583543079,1.01796355,2116.1,2115.8,0.93546143]
[1770583543283,1.01796355,2116.0,2115.8,0.93546143]
[1770583543585,0.45075248,2116.6,2115.8,0.93546143]
[1770583543794,1.01806953,2116.5,2115.8,0.93546143]
[1770583543996,1.01806953,2116.4,2115.8,0.93546143]
[1770583544200,1.01806953,2116.3,2115.6,2.11811855]
[1770583544380,0.45075248,2116.6,2115.6,2.11811855]
[1770583544381,1.01806953,2116.2,2115.6,2.11811855]
[1770583544576,1.01806953,2116.1,2115.6,2.11811855]
[1770583544893,1.01806953,2116.0,2115.6,2.11811855]
[1770583545099,1.18138294,2116.2,2115.6,2.11811855]
[1770583545403,1.01795283,2116.1,2115.6,2.11811855]
[1770583545608,1.01795283,2116.0,2115.6,2.11811855]
[1770583545779,1.18138294,2116.2,2115.6,2.11811855]
[1770583545977,1.46870522,2116.1,2115.6,0.001]
[1770583546191,1.01795274,2116.0,2115.6,0.001]
[1770583546402,1.01795274,2115.9,2115.2,0.93040078]
[1770583546588,2.1995389,2115.8,2115.1,0.001]
[1770583546789,1.01795274,2115.7,2115.1,0.93140078]
[1770583547006,1.18158616,2115.8,2115.1,0.93140078]
[1770583547200,1.01788578,2115.7,2115.1,0.93140078]
[1770583547396,1.18158616,2115.8,2115.1,0.93140078]
[1770583547601,1.01738687,2115.7,2115.6,0.001]
[1770583548111,2.19902887,2115.7,2115.1,0.93140078]
[1770583548288,1.01738687,2115.6,2115.1,0.93140078]
[1770583548488,1.181642,2115.7,2115.1,0.93140078]
[1770583548489,1.181642,2115.7,2115.1,0.001]
[1770583548802,1.01697553,2115.6,2115.1,0.001]
[1770583549011,1.01697553,2115.5,2115.1,0.001]
[1770583549207,1.63239448,2115.7,2115.1,0.001]
[1770583549405,1.46701181,2115.6,2115.1,0.001]
[1770583549596,1.18180958,2115.4,2114.8,0.001]
[1770583549906,1.01625933,2115.3,2114.8,0.001]
[1770583550106,1.01625933,2115.2,2114.8,0.001]
[1770583550312,1.18180958,2115.4,2114.8,0.001]
[1770583550607,1.01525866,2115.3,2114.8,0.001]
[1770583550910,1.01525866,2115.2,2114.8,0.001]
[1770583551107,1.18180958,2115.4,2114.8,0.001]
[1770583551306,1.0143346,2115.3,2114.8,0.001]
[1770583551525,1.18180958,2115.4,2114.8,0.001]
[1770583551689,1.18192133,2115.2,2114.8,0.001]
[1770583553427,1.63267381,2115.2,2114.8,0.001]
[1770583553779,0.45075248,2115.1,2114.8,0.001]
[1770583553985,0.45075248,2115.1,2114.3,9.02273291]
[1770583555207,0.45075248,2114.9,2114.3,9.02273291]
[1770583555813,0.45075248,2114.9,2114.3,8.93799558]
[1770583556199,1.63289736,2114.8,2114.3,8.93799558]
[1770583557236,4.728121,2115.1,2114.4,0.93040078]
[1770583557393,1.18186545,2115.3,2114.4,0.93040078]
[1770583557596,1.18184699,2115.4,2114.4,0.93040078]
[1770583557813,4.72629082,2115.9,2114.4,0.93040078]
[1770583558211,4.72629082,2115.9,2114.6,0.93040078]
[1770583558426,4.72629082,2115.9,2114.7,0.93040078]
[1770583560519,1.18125118,2116.4,2115.0,0.93040078]
[1770583560827,0.0011,2115.7,2115.0,0.93040078]
[1770583560996,1.18125118,2116.4,2115.0,0.93040078]
[1770583561199,0.0011,2115.9,2115.0,0.93040078]
[1770583562323,0.0011,2115.9,2115.1,0.93040078]
[1770583563032,0.0011,2115.9,2115.3,0.93040078]
[1770583563916,0.0011,2115.9,2115.3,4.23340078]
[1770583564100,0.0011,2115.9,2115.4,0.93040078]
[1770583564501,0.0011,2116.5,2115.5,0.93040078]
[1770583564731,0.45295248,2116.5,2115.5,0.93040078]
[1770583564931,0.0011,2116.5,2115.5,0.93040078]
[1770583565931,0.0011,2116.5,2115.7,0.93040078]
[1770583568001,0.0011,2116.5,2115.9,0.93040078]
[1770583570930,0.0011,2116.5,2116.0,2.11187526]
[1770583571729,0.0011,2116.5,2116.1,0.93040078]
[1770583573006,0.0011,2116.5,2116.2,1.18136282]
[1770583573224,0.0011,2116.3,2116.2,1.18136282]
[1770583576227,0.0011,2116.3,2116.2,0.93992274]
[1770583577915,0.0011,2116.3,2116.0,3.302]
[1770583579026,0.0011,2116.3,2116.0,4.48346058]
[1770583581234,0.0011,2116.3,2116.0,5.42338332]
[1770583582842,0.0011,2116.3,2116.0,4.24192274]
[1770583583048,0.0011,2116.3,2115.9,0.001]
[1770583583744,0.45295248,2116.3,2115.9,0.001]
[1770583584521,0.0011,2116.3,2115.9,0.001]
[1770583585634,0.0011,2116.3,2115.9,0.94092274]
[1770583586250,0.0011,2116.3,2116.1,0.001]
[1770583587255,0.0011,2116.3,2115.9,0.93687005]
[1770583588457,0.0011,2116.3,2115.9,2.11835682]
[1770583590330,1.01870248,2116.2,2115.9,2.11835682]
[1770583590530,0.0011,2116.3,2115.9,2.11835682]
[1770583590731,1.01870248,2116.2,2115.9,2.11835682]
[1770583590932,0.0011,2116.3,2115.9,2.11835682]
[1770583591132,1.01870258,2116.2,2115.9,2.11835682]
[1770583591433,0.0011,2116.3,2115.9,2.11835682]
[1770583591745,1.01891807,2116.2,2115.9,2.11835682]
[1770583591929,0.0011,2116.3,2115.9,2.11835682]
[1770583592127,1.01891904,2116.2,2115.9,2.11835682]
[1770583592358,0.0011,2116.3,2116.0,0.93992274]
[1770583592555,1.01909633,2116.2,2116.0,2.12135405]
[1770583592855,0.0011,2116.3,2116.0,2.12135405]
[1770583594954,0.0011,2116.3,2116.1,0.93992274]
[1770583597062,0.0011,2116.3,2116.1,2.12132577]
[1770583598654,0.0011,2116.3,2116.1,2.12232577]
[1770583600660,0.0011,2116.5,2116.1,2.12232577]
[1770583600661,0.0011,2116.7,2116.2,0.93992274]
[1770583601742,0.0011,2116.7,2116.3,1.18130699]
[1770583601942,0.0011,2116.7,2116.2,2.12124567]
[1770583605153,1.01932181,2116.6,2116.2,2.12124567]
[1770583605469,0.0011,2116.7,2116.2,2.12124567]
[1770583605671,1.01928495,2116.6,2116.2,2.12124567]
[1770583605969,0.0011,2116.7,2116.2,2.12124567]
[1770583606172,1.01928522,2116.6,2116.2,2.12124567]
[1770583606374,0.0011,2116.7,2116.2,2.12124567]
[1770583606546,1.01925026,2116.6,2116.2,2.12124567]
[1770583606749,0.0011,2116.7,2116.2,2.12124567]
[1770583607062,1.01925184,2116.6,2116.2,2.12124567]
[1770583607252,0.0011,2116.7,2116.2,2.12124567]
[1770583607446,1.01925283,2116.6,2116.2,2.12124567]
[1770583607646,0.0011,2116.7,2116.2,2.12124567]
[1770583607844,1.47415698,2116.6,2116.1,0.001]
[1770583608040,1.01925181,2116.5,2116.1,0.001]
[1770583608272,1.01925181,2116.4,2116.1,0.001]
[1770583608475,0.0011,2116.7,2116.1,1.18241712]
[1770583608773,1.01937546,2116.6,2116.1,0.001]
[1770583608973,1.01937546,2116.5,2116.1,0.001]
[1770583609157,1.01937546,2116.4,2116.1,0.001]
[1770583609365,1.63606079,2116.6,2116.1,0.001]
[1770583609573,1.01938481,2116.5,2116.1,0.001]
[1770583609764,1.01938481,2116.4,2116.1,0.001]
[1770583609956,1.63606079,2116.6,2116.1,0.001]
[1770583610146,1.01938233,2116.5,2116.1,0.001]
[1770583610344,1.01938233,2116.4,2116.1,0.001]
[1770583610573,1.18221747,2116.7,2116.1,0.001]
[1770583610763,1.0193859,2116.6,2116.1,0.001]
[1770583610964,1.0193859,2116.5,2116.1,0.001]
[1770583611165,1.0193859,2116.4,2116.3,0.001]
[1770583611358,1.0204859,2116.4,2116.3,0.001]
[1770583615278,0.0011,2116.7,2116.4,0.97242819]
[1770583615477,0.0011,2116.8,2116.3,3.303]
[1770583615478,1.6370404,2116.8,2116.3,3.303]
[1770583615678,0.0011,2116.8,2116.3,0.001]
[1770583615888,0.0011,2116.8,2116.3,0.97342819]
[1770583617757,0.0011,2116.8,2116.5,0.97242819]
[1770583619784,0.0011,2116.8,2116.7,0.97242819]
[1770583621756,0.0011,2117.1,2116.8,0.97242819]
[1770583623385,0.45600517,2117.1,2116.3,0.001]
[1770583623582,0.45600517,2117.1,2116.3,0.97342819]
[1770583623786,0.45490517,2116.9,2116.3,0.001]
[1770583624288,0.45490517,2116.9,2116.1,0.001]
[1770583624787,0.45490517,2116.9,2116.5,0.001]
[1770583625084,0.45600517,2116.9,2116.5,0.001]
[1770583625390,0.45600517,2116.9,2116.3,0.001]
[1770583626655,0.45390517,2116.7,2116.3,0.001]
[1770583627262,0.45390517,2116.3,2116.0,0.001]
[1770583627557,0.45390517,2116.1,2115.9,0.001]
[1770583628164,0.45390517,2116.1,2115.3,0.97242819]
[1770583629189,0.45390517,2115.9,2115.1,0.97242819]
[1770583629363,0.50117197,2115.9,2115.1,0.97242819]
[1770583629569,0.50117197,2115.9,2114.3,9.91042377]
[1770583629570,0.2469729,2115.1,2114.3,9.91042377]
[1770583629761,0.2469729,2115.1,2114.4,0.97242819]
[1770583631168,1.18203309,2115.0,2114.4,0.97242819]
[1770583632593,0.45290517,2114.9,2114.0,0.97242819]
[1770583633085,1.18214488,2114.8,2114.0,0.97242819]
[1770583633270,1.63505005,2114.8,2113.8,0.97242819]
[1770583633464,0.45290517,2114.7,2113.8,0.97242819]
[1770583633872,0.50017197,2114.7,2113.8,0.97242819]
[1770583634166,0.50017197,2114.7,2113.6,0.97242819]
[1770583634366,0.45290517,2114.7,2113.8,0.97242819]
[1770583634987,0.45290517,2114.7,2113.6,0.90824916]
[1770583635162,0.50017197,2114.5,2113.6,0.90824916]
[1770583635367,0.50017197,2114.5,2113.5,3.302]
[1770583637575,1.1825363,2114.1,2113.8,0.001]
[1770583638289,1.1825363,2114.1,2113.5,0.001]
[1770583638664,0.45290517,2114.0,2113.5,0.001]
[1770583638865,0.45290517,2113.8,2113.0,0.98346507]
[1770583639265,1.1826228,2114.0,2113.1,0.98346507]
[1770583640172,1.63552797,2114.0,2113.1,0.98346507]
[1770583641174,1.63552797,2114.0,2113.1,2.1665537]
[1770583641793,1.63552797,2114.0,2113.1,0.98346507]
[1770583643978,1.18236852,2114.5,2113.1,0.98346507]
[1770583644374,0.45290517,2114.4,2113.1,0.98346507]
[1770583644576,1.22963532,2114.5,2113.1,0.98346507]
[1770583644577,0.45290517,2114.1,2113.1,0.98346507]
[1770583645000,0.45290517,2113.8,2112.8,0.98346507]
[1770583645375,0.50017197,2113.7,2112.7,0.001]
[1770583645575,0.45290517,2113.7,2112.7,0.98446507]
[1770583645776,0.02469729,2113.1,2112.9,0.98346507]
[1770583646873,1.18264818,2113.9,2113.0,0.98346507]
[1770583647311,1.63516186,2114.7,2113.0,0.98346507]
[1770583647601,0.45290517,2114.2,2113.0,0.98346507]
[1770583647801,0.45290517,2114.2,2113.1,0.98346507]
[1770583647802,0.45290517,2114.0,2113.1,0.98346507]
[1770583648380,1.1825363,2114.1,2113.1,0.98346507]
[1770583648818,4.72974129,2114.3,2113.1,0.98346507]
[1770583649001,1.18242444,2114.3,2113.1,0.98346507]
[1770583649678,1.1823126,2114.5,2113.1,0.98346507]
[1770583649982,0.002,2113.8,2113.3,0.98346507]
[1770583650293,1.18220078,2114.7,2113.3,0.98346507]
[1770583650487,0.002,2114.0,2113.3,0.98346507]
[1770583651979,1.18214488,2114.8,2113.5,0.98346507]
[1770583652604,4.48909222,2114.9,2113.5,0.98346507]
[1770583653383,0.50017197,2114.6,2113.5,0.98346507]
[1770583653576,0.0472668,2114.3,2113.3,2.16642036]
[1770583653802,0.50017197,2114.3,2113.3,2.16642036]
[1770583654404,1.18248037,2114.2,2113.3,2.16642036]
[1770583654601,1.18248037,2114.2,2113.3,0.98346507]
[1770583654802,1.18248037,2114.2,2113.3,2.16643062]
[1770583655209,1.18248037,2114.2,2113.4,0.98346507]
[1770583655801,1.18248037,2114.2,2113.4,0.96123751]
[1770583656388,1.18248037,2114.2,2113.4,2.14414366]
[1770583658414,0.0472668,2114.0,2113.2,0.98346507]
[1770583658610,0.47513273,2114.1,2113.2,0.98346507]
[1770583658791,0.47513273,2114.1,2113.1,1.18306752]
[1770583658996,0.0472668,2114.0,2113.1,1.18306752]
[1770583659386,0.52239953,2114.0,2113.0,0.98446507]
[1770583659919,0.52239953,2114.0,2113.0,2.16756997]
[1770583661114,1.18264818,2113.9,2113.0,0.98446507]
[1770583661415,1.22991498,2113.9,2113.0,0.98446507]
[1770583661707,1.22991498,2113.9,2113.0,2.1676035]
[1770583661913,0.20004805,2113.1,2113.0,2.1676035]
[1770583662115,1.22991498,2113.9,2113.0,2.1676035]
[1770583662299,1.22991498,2113.9,2113.0,0.98446507]
[1770583662505,1.22991498,2113.9,2113.2,0.001]
[1770583663509,1.70504771,2113.9,2113.2,0.001]
[1770583663924,1.18264818,2113.9,2113.2,0.98446507]
[1770583665522,1.65778091,2113.9,2113.2,0.001]
[1770583665893,0.47513273,2113.8,2113.2,0.001]
[1770583668026,1.18264818,2113.9,2113.2,0.001]
[1770583668223,1.18459501,2114.0,2113.2,0.94963436]
[1770583669122,1.23186181,2114.0,2113.2,0.94963436]
[1770583669427,1.18459501,2114.0,2113.2,0.94963436]
[1770583669628,1.18462307,2114.0,2113.2,0.94963436]
[1770583670132,0.002,2114.0,2113.4,0.94863436]
[1770583672198,0.002,2114.0,2113.4,2.13156025]
[1770583672501,0.002,2114.0,2113.4,0.94863436]
[1770583675899,0.002,2113.8,2113.4,0.94863436]
[1770583676400,0.002,2113.8,2113.3,0.001]
[1770583678114,0.002,2113.8,2113.3,0.94963436]
[1770583679210,0.98030872,2113.3,2112.1,0.94863436]
[1770583679417,0.98030872,2113.0,2112.2,1.12322227]
[1770583679741,0.98030872,2113.3,2112.3,0.94863436]
[1770583680038,1.08270872,2113.4,2112.3,2.07185663]
[1770583680235,1.08270872,2113.4,2112.4,1.12322227]
[1770583680533,0.98030872,2113.2,2112.4,1.12322227]
[1770583680942,0.98030872,2113.2,2112.5,1.12322227]
[1770583681104,1.18309592,2113.1,2112.2,3.25541057]
[1770583681300,0.98030872,2113.0,2112.2,1.12322227]
[1770583681634,0.98030872,2113.0,2112.3,1.06322227]
[1770583681812,1.08270872,2112.8,2112.0,1.06322227]
[1770583682008,1.08270872,2112.8,2112.1,1.06322227]
[1770583682242,1.08270872,2112.8,2110.9,4.78435948]
[1770583682243,0.98030872,2112.5,2111.0,1.06322227]
[1770583682558,1.21387902,2112.1,2111.1,1.20426437]
[1770583682844,0.0472668,2111.8,2111.2,0.95770086]
[1770583683140,0.98030872,2112.1,2110.8,0.94863436]
[1770583683312,1.18360003,2112.3,2111.0,0.94863436]
[1770583683505,0.1024,2112.2,2111.0,0.94863436]
[1770583683705,0.1024,2112.2,2111.1,0.95770086]
[1770583684238,0.98030872,2112.1,2111.2,0.95770086]
[1770583684405,0.98030872,2112.1,2110.8,1.18438214]
[1770583684601,0.1024,2112.2,2110.9,0.94863436]
[1770583684801,1.18360003,2112.3,2111.1,0.94863436]
[1770583685330,0.1024,2112.0,2111.2,0.95770086]
[1770583685504,0.1024,2112.0,2111.1,0.95770086]
[1770583685700,1.18365607,2112.1,2111.1,0.95770086]
[1770583685899,1.18365607,2112.1,2111.2,2.14186145]
[1770583686132,1.18365607,2112.1,2111.2,1.18416059]
[1770583686434,1.18365607,2112.1,2111.1,0.95770086]
[1770583686662,1.18365607,2112.1,2111.2,0.95770086]
[1770583687137,0.98030872,2112.0,2110.8,0.94863436]
[1770583687302,2.16407689,2111.9,2110.8,0.94863436]
[1770583687508,2.16407689,2111.9,2110.8,1.18437957]
[1770583688039,1.18376817,2111.9,2111.4,0.001]
[1770583688208,1.18376817,2111.9,2111.1,0.001]
[1770583688721,4.7345935,2112.2,2111.2,1.90411635]
[1770583688932,4.7345935,2112.2,2111.2,1.90178654]
[1770583690656,1.183544,2112.3,2111.4,0.94863436]
[1770583693649,3.307,2112.7,2111.5,2.1371446]
[1770583693949,0.98030872,2112.3,2111.5,0.95315218]
[1770583694177,0.98030872,2112.3,2111.1,0.001]
[1770583694447,0.98030872,2112.1,2111.1,0.001]
[1770583695760,1.18371212,2112.0,2111.1,0.001]
[1770583697152,0.92259759,2111.9,2110.3,0.001]
[1770583697365,0.92259759,2111.9,2108.7,4.977]
[1770583697366,0.1024,2110.6,2109.7,0.13342489]
[1770583697653,0.1024,2110.6,2109.7,1.31839649]
[1770583697654,3.309,2110.5,2109.7,1.31839649]
[1770583697840,4.49358139,2110.5,2109.7,0.13342489]
[1770583698254,1.18458139,2110.5,2109.7,0.13342489]
[1770583698456,3.309,2110.6,2109.7,2.30714222]
[1770583698681,1.18447048,2110.7,2109.7,2.20714222]
[1770583698886,3.309,2110.6,2109.7,2.20714222]
[1770583699260,3.309,2110.6,2109.7,0.03342489]
[1770583699477,3.309,2110.6,2109.7,1.21842253]
[1770583699784,1.18460955,2110.4,2109.7,0.03342489]
[1770583699980,3.309,2110.4,2109.7,2.20712541]
[1770583700181,4.49359458,2110.5,2109.7,2.20712541]
[1770583700386,4.49359458,2110.5,2109.7,1.02214597]
[1770583700680,4.49359458,2110.5,2109.9,0.001]
[1770583701386,0.92259759,2110.4,2109.1,0.98872108]
[1770583701706,0.1024,2110.4,2109.4,1.18515679]
[1770583701890,1.18449729,2110.6,2109.5,0.98872108]
[1770583702386,3.31,2110.5,2109.3,0.98872108]
[1770583702691,3.31,2110.5,2109.4,0.98872108]
[1770583702988,1.18449729,2110.6,2109.4,0.98872108]
[1770583703185,3.31,2110.5,2109.4,0.48922108]
[1770583703489,4.23259759,2110.5,2109.3,1.18522689]
[1770583703783,1.18466568,2110.3,2109.2,5.72971777]
[1770583704174,4.23259759,2110.2,2108.9,2.17412719]
[1770583704382,4.23259759,2110.2,2108.8,0.001]
[1770583704383,3.31,2110.2,2109.2,0.66525345]
[1770583704565,3.31,2110.2,2109.1,1.18533967]
[1770583704761,5.41726327,2110.3,2109.1,1.18533967]
[1770583704958,0.92259759,2109.3,2107.8,0.98872108]
[1770583705163,0.92259759,2109.3,2108.5,1.18564725]
[1770583705389,0.92259759,2109.7,2108.4,4.74285653]
[1770583705559,1.23193248,2110.3,2109.0,1.18536009]
[1770583705560,3.31,2110.0,2109.0,1.18536009]
[1770583705764,1.18489027,2109.9,2108.7,0.98872108]
[1770583706186,0.92259759,2109.7,2108.0,0.98872108]
[1770583706684,0.92259759,2109.5,2108.5,1.1856763]
[1770583707094,1.02499759,2109.8,2108.5,1.1106763]
[1770583707389,4.33599759,2109.8,2108.5,1.1106763]
[1770583707765,1.18489027,2109.9,2108.6,0.98872108]
[1770583708087,5.6621587,2110.1,2108.7,1.18556456]
[1770583708672,0.92259759,2110.0,2108.7,1.18556456]
[1770583709089,0.92259759,2110.4,2108.8,1.03598788]
[1770583709289,1.18466568,2110.3,2108.8,1.03598788]
[1770583709989,1.18463347,2110.4,2109.0,0.98872108]
[1770583710194,4.23359759,2110.7,2109.0,0.98872108]
[1770583710195,1.28689729,2110.6,2109.0,0.98872108]
[1770583710394,1.18446011,2110.7,2109.4,0.98872108]
[1770583712280,4.73776472,2110.9,2109.5,1.18511495]
[1770583712468,4.73776472,2110.9,2109.5,2.17383603]
[1770583712665,0.92259759,2109.5,2107.4,0.98872108]
[1770583712895,0.1496668,2109.3,2107.7,0.98872108]
[1770583713093,0.0472668,2109.0,2108.1,1.18586559]
[1770583713283,1.07226439,2109.3,2108.1,1.18588795]
[1770583713590,0.0472668,2109.0,2108.1,1.18588795]
[1770583713990,0.0472668,2108.9,2107.7,0.98872108]
[1770583714178,4.78922281,2108.9,2108.3,0.001]
[1770583714492,1.18550834,2108.8,2107.8,1.18607078]
[1770583714668,4.74154175,2109.1,2107.8,1.18607078]
[1770583714979,1.01051711,2109.0,2108.0,0.001]
[1770583715178,4.74154175,2109.1,2108.0,0.001]
[1770583715385,1.00997628,2109.0,2108.0,0.001]
[1770583715595,4.74154175,2109.1,2108.0,0.001]
[1770583715783,1.18533971,2109.1,2108.0,0.001]
[1770583716270,1.23260651,2109.1,2108.0,0.001]
[1770583716469,1.18533971,2109.1,2108.0,0.001]
[1770583716868,0.0472668,2108.9,2108.0,0.001]
[1770583717065,1.18533971,2109.1,2108.0,0.001]
[1770583717467,0.0472668,2108.9,2108.0,0.001]
[1770583717667,0.0472668,2109.0,2108.0,0.24780267]
[1770583718170,0.3229436,2108.9,2108.0,0.24780267]
[1770583718797,1.18550834,2108.8,2108.0,1.43372307]
[1770583718987,1.50622912,2108.8,2108.0,1.43372307]
[1770583719188,1.50622912,2108.8,2108.0,1.1869204]
[1770583719694,1.50622912,2108.8,2108.0,1.18695653]
[1770583719996,0.32072078,2108.8,2108.0,1.18695653]
[1770583720895,0.32072078,2108.8,2108.0,0.001]
[1770583721376,1.50623414,2108.8,2108.0,0.001]
[1770583721888,0.32072078,2108.8,2108.0,0.98972108]
[1770583723203,0.32072078,2108.8,2108.1,1.18590199]
[1770583723573,1.5062391,2108.8,2108.1,1.18590199]
[1770583723984,0.32072078,2108.8,2108.1,1.18590199]
[1770583726201,0.23284544,2108.8,2108.2,0.90344109]
[1770583726379,5.06230399,2109.6,2108.2,0.90344109]
[1770583726578,1.33442086,2109.5,2108.2,0.90344109]
[1770583726884,1.15330461,2109.4,2108.2,0.90344109]
[1770583727187,1.33431187,2109.3,2108.2,0.90344109]
[1770583727393,1.01380462,2109.2,2108.3,2.08923058]
[1770583727702,2.19908998,2109.2,2108.3,2.08923058]
[1770583727997,0.002,2108.9,2108.3,2.08923058]
[1770583728979,0.32044273,2109.2,2108.4,0.90344109]
[1770583729386,0.32044273,2109.2,2108.6,0.90344109]
[1770583729800,0.002,2110.0,2108.5,1.18567702]
[1770583729801,0.2804,2109.8,2108.7,0.90344109]
[1770583729983,1.01568149,2109.7,2108.7,0.90344109]
[1770583730185,0.2804,2109.8,2108.7,0.90344109]
[1770583730380,1.01592705,2109.7,2108.7,0.90344109]
[1770583730594,0.2804,2109.8,2108.7,0.90344109]
[1770583730786,1.01593991,2109.7,2108.7,0.90344109]
[1770583730991,0.2804,2109.8,2108.7,0.90344109]
[1770583731197,1.01595809,2109.7,2108.7,0.90344109]
[1770583731398,1.01595809,2109.6,2108.7,0.90344109]
[1770583731600,0.2804,2109.8,2108.9,0.90344109]
[1770583731773,1.01627779,2109.7,2108.9,0.90344109]
[1770583731978,0.2804,2109.8,2108.9,0.90344109]
[1770583732280,0.002,2110.0,2108.9,0.90344109]